bitfinex/quotes_ETHUSD_20250519
["timestamp","ask_amount","ask_price","bid_price","bid_amount"]
[1747672056612,0.1,2467.9,2467.8,11.60690548]
[1747672057143,4.15202804,2467.9,2467.8,0.2514122]
[1747672057445,0.1,2467.9,2467.8,8.5924122]
[1747672057921,4.15202804,2467.9,2467.8,8.5924122]
[1747672059243,0.1,2467.9,2467.8,8.5924122]
[1747672061749,0.1,2467.9,2467.8,0.2514122]
[1747672061948,0.1,2467.9,2467.8,8.5924122]
[1747672062546,0.1,2467.9,2467.8,16.5924122]
[1747672062705,0.1,2467.9,2467.8,21.48714532]
[1747672063944,0.1,2467.9,2467.8,16.5924122]
[1747672064649,0.1,2467.9,2467.8,8.2514122]
[1747672064946,0.1,2467.9,2467.8,16.5924122]
[1747672065862,4.15202804,2467.9,2467.8,16.5924122]
[1747672066058,0.1,2467.9,2467.8,8.5924122]
[1747672066615,0.1,2467.9,2467.8,16.5924122]
[1747672066840,0.1,2467.9,2467.8,20.64460443]
[1747672067045,0.1,2467.9,2467.8,39.24279713]
[1747672067243,0.1,2467.9,2467.8,40.00309713]
[1747672068143,0.1,2467.9,2467.8,35.9509049]
[1747672068365,0.1,2467.9,2467.8,31.8527122]
[1747672069848,0.1,2467.9,2467.8,22.7514122]
[1747672070040,0.1,2467.9,2467.8,31.0914122]
[1747672070445,0.1,2467.9,2467.8,35.92510443]
[1747672070646,0.1,2467.9,2467.8,35.9711049]
[1747672071290,0.1,2467.9,2467.8,31.8729122]
[1747672072585,0.1,2467.9,2467.8,35.92510443]
[1747672073087,0.1,2467.9,2467.8,47.28635143]
[1747672073405,0.1,2468.9,2468.4,4.05115122]
[1747672073567,0.1,2468.9,2468.5,12.27303915]
[1747672073747,0.1,2468.9,2468.7,12.05058323]
[1747672073947,0.1,2468.9,2468.8,18.55055087]
[1747672074187,0.1,2468.9,2468.8,26.55055087]
[1747672074501,0.1,2468.9,2468.8,22.5]
[1747672074851,0.1,2468.9,2468.8,30.722]
[1747672075187,4.15038681,2468.9,2468.8,30.722]
[1747672075390,0.1,2468.9,2468.8,30.722]
[1747672075588,4.05055087,2468.8,2468.5,0.19812878]
[1747672075791,4.05082015,2468.7,2468.5,0.19812878]
[1747672076097,0.2543,2468.9,2468.6,8.221]
[1747672076098,4.30476898,2468.9,2468.6,8.221]
[1747672076299,4.05071495,2468.7,2468.6,22.721]
[1747672076647,4.05063398,2468.8,2468.6,8.221]
[1747672076851,4.05087904,2468.6,2468.5,0.19812878]
[1747672077578,4.05104314,2468.5,2468.4,8.221]
[1747672079065,4.20534314,2468.5,2468.4,8.221]
[1747672080188,0.1543,2468.5,2468.0,14.64915435]
[1747672080393,4.20537854,2468.5,2468.1,8.221]
[1747672080581,4.05137813,2468.3,2468.1,8.221]
[1747672080890,4.05153553,2468.2,2468.0,16.76256953]
[1747672081187,4.05153553,2468.2,2468.1,8.221]
[1747672081489,4.05132562,2468.4,2468.1,8.221]
[1747672082050,4.05112002,2468.5,2468.1,16.221]
[1747672082251,4.05112002,2468.5,2467.8,0.2514122]
[1747672082252,4.60202804,2467.9,2467.8,0.2514122]
[1747672082457,4.75632804,2467.9,2467.8,0.2514122]
[1747672082768,5.06698736,2467.9,2467.8,0.2514122]
[1747672082984,4.75632804,2467.9,2467.8,0.2514122]
[1747672083178,4.20632804,2467.9,2467.8,0.2514122]
[1747672083376,4.05202804,2467.9,2467.8,0.2514122]
[1747672083689,4.05202804,2467.9,2467.8,8.4724122]
[1747672084192,4.05202804,2467.9,2467.8,0.2514122]
[1747672084787,4.05202804,2467.9,2467.8,8.4734122]
[1747672085700,4.05191777,2468.0,2467.8,0.2514122]
[1747672085900,4.05191777,2468.0,2467.9,8.222]
[1747672086101,0.1543,2468.4,2467.9,8.222]
[1747672086302,0.1543,2468.4,2467.9,9.06934122]
[1747672086601,4.05186385,2468.0,2467.9,0.84734122]
[1747672086805,4.05186385,2468.0,2467.9,8.222]
[1747672087455,4.05199819,2468.0,2467.8,0.2514122]
[1747672087701,4.05186385,2468.0,2467.9,8.222]
[1747672088294,4.05194788,2468.0,2467.8,0.2514122]
[1747672088494,4.05194788,2468.0,2467.9,8.222]
[1747672088664,4.051462,2468.3,2467.9,8.222]
[1747672088868,4.05156625,2468.2,2467.9,9.06934122]
[1747672089096,4.05177291,2468.1,2467.9,9.06934122]
[1747672089291,0.1543,2468.4,2467.9,9.06934122]
[1747672089470,4.05141432,2468.3,2468.0,0.93207534]
[1747672089895,4.05155644,2468.2,2468.0,0.93207534]
[1747672090190,4.05155644,2468.2,2467.9,17.492]
[1747672090191,4.05169968,2468.1,2467.9,17.492]
[1747672090394,4.05169968,2468.1,2468.0,8.222]
[1747672090781,4.05169968,2468.1,2468.0,22.722]
[1747672090995,4.05159155,2468.2,2468.0,22.722]
[1747672091155,4.05138093,2468.3,2468.0,22.722]
[1747672091360,4.0515681,2468.2,2468.0,26.76854122]
[1747672091608,4.0509057,2468.6,2468.0,18.54654122]
[1747672091897,4.05160137,2468.2,2468.1,8.222]
[1747672093002,4.05160137,2468.2,2467.9,17.492]
[1747672093164,4.05179356,2468.1,2468.0,8.222]
[1747672094045,4.05160503,2468.2,2468.0,8.222]
[1747672094307,4.05162179,2468.2,2468.0,8.222]
[1747672094658,4.05153553,2468.2,2468.0,8.222]
[1747672095365,0.55,2468.6,2468.0,8.222]
[1747672095587,4.05141093,2468.3,2468.0,8.222]
[1747672095974,4.05153929,2468.2,2468.0,8.222]
[1747672096901,4.05134841,2468.4,2468.0,8.222]
[1747672097199,4.05139379,2468.3,2468.0,8.222]
[1747672097557,4.05142623,2468.3,2468.0,8.222]
[1747672097823,4.05141345,2468.3,2468.1,14.5]
[1747672098398,4.05113254,2468.5,2468.1,18.37440232]
[1747672098695,4.15048222,2468.9,2468.2,8.0]
[1747672098696,4.05069147,2468.8,2468.2,8.0]
[1747672098884,4.0505979,2468.8,2468.3,4.05135974]
[1747672099100,0.1,2468.9,2468.3,4.05129726]
[1747672099305,0.1,2468.9,2468.4,16.15078773]
[1747672099504,0.1,2468.9,2468.5,9.0276]
[1747672099704,0.1,2468.9,2468.6,12.05085226]
[1747672099905,0.1,2468.9,2468.7,4.05062235]
[1747672100204,0.1,2468.9,2468.8,25.492]
[1747672100413,0.1,2468.9,2468.8,28.8412]
[1747672101379,0.1,2468.9,2468.8,32.89175087]
[1747672101583,0.1,2468.9,2468.8,28.8412]
[1747672102589,0.1,2468.9,2468.8,37.0622]
[1747672102922,0.1,2468.9,2468.8,51.5622]
[1747672103436,0.1,2468.9,2468.8,56.40345087]
[1747672104303,0.1,2468.9,2468.8,56.40745087]
[1747672104823,0.1,2468.9,2468.8,74.09721487]
[1747672105199,0.1,2468.9,2468.8,74.30059904]
[1747672105399,4.14885068,2469.9,2469.3,4.04960738]
[1747672105604,4.04891678,2469.8,2469.5,8.0]
[1747672105803,4.04891678,2469.8,2468.9,4.05032647]
[1747672105804,4.05014364,2469.1,2468.8,3.3492]
[1747672105994,0.1543,2469.7,2468.9,14.5]
[1747672106314,4.04982858,2469.3,2468.9,14.5]
[1747672106623,4.0498388,2469.3,2468.9,14.5]
[1747672106786,4.04982534,2469.3,2468.9,14.5]
[1747672106982,4.04992959,2469.2,2468.9,14.5]
[1747672107189,4.04992959,2469.2,2469.0,2.29221288]
[1747672107423,4.04981263,2469.3,2469.0,2.29221288]
[1747672108028,4.05005872,2469.1,2468.9,14.5]
[1747672108230,4.05022276,2469.0,2468.9,14.5]
[1747672108432,4.04998174,2469.2,2469.0,8.224]
[1747672108586,0.1543,2469.4,2469.1,8.224]
[1747672108791,4.0498947,2469.2,2469.1,8.224]
[1747672109307,0.1543,2469.4,2469.1,8.224]
[1747672109609,4.0498947,2469.2,2469.1,8.224]
[1747672110242,4.04982655,2469.3,2469.1,8.224]
[1747672111446,0.45838563,2469.8,2469.1,8.224]
[1747672111611,4.0498072,2469.3,2469.1,8.224]
[1747672111942,4.0498072,2469.3,2469.1,9.0464]
[1747672112148,4.04965706,2469.4,2469.1,9.0464]
[1747672112451,4.04949599,2469.5,2469.1,9.0464]
[1747672112648,4.04956741,2469.4,2469.1,23.5464]
[1747672112823,4.04930243,2469.6,2469.1,23.5464]
[1747672113022,4.04930243,2469.6,2469.2,8.817]
[1747672113355,4.0491139,2469.7,2469.2,8.817]
[1747672113356,4.04913636,2469.7,2469.2,12.45834819]
[1747672113517,4.04932561,2469.6,2469.2,12.45834819]
[1747672114146,4.04902285,2469.8,2469.2,16.50812917]
[1747672114345,4.04936537,2469.6,2469.3,4.00545292]
[1747672114537,4.04895839,2469.8,2469.3,4.00545292]
[1747672114734,4.04926624,2469.6,2469.3,4.00545292]
[1747672115048,4.04891084,2469.8,2469.4,8.223]
[1747672115208,0.1,2469.9,2469.4,8.223]
[1747672115409,4.04931616,2469.6,2469.4,8.223]
[1747672115749,4.04923874,2469.6,2469.5,8.223]
[1747672116338,4.04973069,2469.3,2469.2,25.485]
[1747672116652,4.04973069,2469.3,2469.2,33.708]
[1747672116856,4.04973069,2469.3,2469.2,25.708]
[1747672117016,4.04973069,2469.3,2469.2,17.485]
[1747672117216,4.04973069,2469.3,2469.2,25.708]
[1747672119053,4.04973069,2469.3,2469.2,17.485]
[1747672119233,4.04973069,2469.3,2469.2,25.708]
[1747672119632,0.1,2469.9,2469.3,8.7527]
[1747672119832,4.14882026,2469.9,2469.3,8.7527]
[1747672120036,4.04900363,2469.8,2469.3,8.7527]
[1747672120238,4.04906787,2469.8,2469.3,8.7527]
[1747672120438,4.04906787,2469.8,2469.4,3.70315]
[1747672120719,4.04918701,2469.7,2469.4,3.70315]
[1747672120920,0.1,2469.9,2469.4,3.70315]
[1747672121125,4.0490055,2469.8,2469.4,3.70315]
[1747672121424,4.04910417,2469.7,2469.4,3.70315]
[1747672121622,4.04892319,2469.8,2469.5,1.245585]
[1747672121839,4.04892319,2469.8,2469.2,32.32863137]
[1747672121840,0.1543,2469.8,2469.2,17.485]
[1747672122154,4.04907028,2469.8,2469.4,8.223]
[1747672122355,4.04925247,2469.6,2469.4,8.223]
[1747672122534,4.04910655,2469.7,2469.4,8.223]
[1747672122741,4.04940271,2469.5,2469.4,8.223]
[1747672122935,4.04940271,2469.5,2469.3,8.7527]
[1747672123255,4.049309,2469.6,2469.4,10.84677]
[1747672123958,4.04940271,2469.5,2469.3,8.7527]
[1747672124176,4.04940271,2469.5,2469.4,8.222]
[1747672124877,4.0496588,2469.4,2469.3,8.0]
[1747672125071,4.0496588,2469.4,2469.3,16.222]
[1747672125473,4.04923874,2469.6,2469.3,16.222]
[1747672125771,4.04923874,2469.6,2469.3,19.5927]
[1747672125972,4.04942292,2469.5,2469.3,19.5927]
[1747672126278,4.0493383,2469.6,2469.3,19.5927]
[1747672126489,4.04909504,2469.7,2469.3,19.5927]
[1747672126784,4.04932692,2469.6,2469.3,19.5927]
[1747672126989,4.04932692,2469.6,2469.4,3.70777]
[1747672128087,4.04917389,2469.7,2469.4,3.70777]
[1747672128471,4.04917389,2469.7,2469.4,18.20777]
[1747672128673,4.04898134,2469.8,2469.5,0.7633]
[1747672129061,4.14876113,2469.9,2469.5,12.282607]
[1747672129272,0.1,2469.9,2469.6,8.222]
[1747672129855,0.1,2469.9,2469.7,8.0]
[1747672130060,0.1,2469.9,2469.8,15.3317]
[1747672131483,4.14874691,2469.9,2469.8,15.3317]
[1747672131701,4.14874691,2469.9,2469.8,22.722]
[1747672132955,0.1543,2470.7,2469.9,0.8254]
[1747672133279,4.04806434,2470.4,2469.9,8.8254]
[1747672133456,4.20178309,2470.7,2469.9,8.8254]
[1747672133657,4.04818354,2470.3,2469.9,8.8254]
[1747672133857,4.04818354,2470.3,2470.0,3.38196]
[1747672134291,0.55,2470.5,2469.9,8.0]
[1747672134804,4.04842672,2470.1,2470.0,16.217]
[1747672135301,4.04842672,2470.1,2470.0,8.217]
[1747672135465,4.04858299,2470.0,2469.9,8.0]
[1747672135875,4.04874691,2469.9,2469.8,14.5]
[1747672136085,4.04874691,2469.9,2469.8,22.717]
[1747672136373,4.04900248,2469.8,2469.4,4.47677]
[1747672136684,4.04900248,2469.8,2469.6,8.0]
[1747672136685,4.049074,2469.8,2469.6,8.0]
[1747672136896,4.04907478,2469.7,2469.6,8.0]
[1747672137094,4.04907478,2469.7,2469.6,16.217]
[1747672137297,4.04864014,2470.0,2469.6,16.217]
[1747672137794,4.04907478,2469.7,2469.6,8.0]
[1747672138107,4.04907478,2469.7,2469.6,16.217]
[1747672139021,4.04923874,2469.6,2469.5,14.947677]
[1747672139171,4.04923874,2469.6,2469.5,30.717]
[1747672139372,4.04923874,2469.6,2469.5,22.717]
[1747672139910,4.04923874,2469.6,2469.5,14.5]
[1747672140279,4.04907521,2469.7,2469.3,0.14845377]
[1747672140280,4.04956669,2469.4,2469.3,0.14845377]
[1747672142006,4.59956669,2469.4,2469.3,0.14845377]
[1747672142173,4.04946606,2469.5,2469.3,0.14845377]
[1747672142373,0.1543,2469.9,2469.4,8.0]
[1747672142614,4.04956669,2469.4,2469.3,0.14845377]
[1747672142778,4.04973069,2469.3,2469.2,17.485]
[1747672142976,4.20309381,2469.9,2469.2,25.702]
[1747672143196,4.04957683,2469.4,2469.2,25.702]
[1747672143481,4.04937654,2469.6,2469.2,28.36595538]
[1747672143703,0.1543,2469.9,2469.2,28.36595538]
[1747672144007,0.1543,2469.9,2469.3,8.25470963]
[1747672144008,4.04902944,2469.8,2469.3,8.25470963]
[1747672144217,4.04909499,2469.7,2469.3,8.25470963]
[1747672144418,0.1543,2470.1,2469.3,8.25470963]
[1747672144419,4.04954826,2469.5,2469.4,8.47169931]
[1747672144715,4.04954826,2469.5,2469.4,0.25469931]
[1747672144926,4.04954826,2469.5,2469.4,8.47169931]
[1747672145223,4.04954826,2469.5,2469.4,0.25469931]
[1747672145428,4.04954826,2469.5,2469.4,8.47169931]
[1747672145628,4.04954826,2469.5,2469.4,0.25469931]
[1747672148233,4.04900314,2469.8,2469.4,0.25469931]
[1747672148405,4.04900314,2469.8,2469.5,0.7891]
[1747672148604,4.04908693,2469.7,2469.5,0.7891]
[1747672149007,4.04923874,2469.6,2469.5,0.7891]
[1747672149222,4.04917307,2469.7,2469.5,0.7891]
[1747672149572,4.04923874,2469.6,2469.5,0.78741105]
[1747672150060,4.04913446,2469.7,2469.5,0.78741105]
[1747672150350,4.04919145,2469.7,2469.5,0.78741105]
[1747672150757,4.04923874,2469.6,2469.5,0.78741105]
[1747672151473,4.04923874,2469.6,2469.5,9.00441105]
[1747672153528,4.04914051,2469.7,2469.5,9.00441105]
[1747672153843,4.04914051,2469.7,2469.5,9.93032209]
[1747672154023,0.156,2470.4,2469.5,13.97957122]
[1747672154244,4.04859176,2470.0,2469.5,13.97963774]
[1747672154447,4.04875848,2469.9,2469.5,9.93032209]
[1747672154660,4.04875848,2469.9,2469.6,1.42344927]
[1747672155943,4.04875848,2469.9,2469.7,8.217]
[1747672156380,4.04868092,2470.0,2469.7,8.217]
[1747672157681,4.04829633,2470.2,2469.7,8.217]
[1747672157843,4.04829633,2470.2,2469.8,0.8089]
[1747672158048,4.04843066,2470.1,2469.8,0.8089]
[1747672158249,4.04843066,2470.1,2469.8,2.13123569]
[1747672159351,4.04836247,2470.2,2469.8,2.13123569]
[1747672159548,4.04817904,2470.3,2469.8,6.1801258]
[1747672160271,4.04795192,2470.4,2469.9,4.04873512]
[1747672160451,4.04795192,2470.4,2470.1,0.7903]
[1747672160452,4.04806468,2470.4,2470.1,0.7903]
[1747672160653,4.04806468,2470.4,2470.2,8.216]
[1747672160986,0.256,2470.9,2470.2,8.216]
[1747672161188,4.04746035,2470.7,2470.2,8.216]
[1747672161479,4.04736841,2470.8,2470.4,0.804]
[1747672161649,0.1,2470.9,2470.4,6.56345906]
[1747672161861,4.1472597,2470.9,2470.4,2.51562022]
[1747672162093,4.04742022,2470.8,2470.4,2.51562022]
[1747672163107,4.04763097,2470.6,2470.4,0.804]
[1747672163317,4.14712797,2470.9,2470.5,8.216]
[1747672163600,0.1,2470.9,2470.5,12.26362669]
[1747672163781,0.1,2470.9,2470.6,1.71154831]
[1747672164094,0.1,2470.9,2470.7,8.212]
[1747672164095,4.04729884,2470.8,2470.7,8.212]
[1747672164293,4.14717489,2470.9,2470.7,8.212]
[1747672164294,0.1,2470.9,2470.7,8.212]
[1747672165503,4.14726506,2470.9,2470.7,8.212]
[1747672165799,4.14711447,2470.9,2470.7,9.20435483]
[1747672166001,4.14711447,2470.9,2470.8,0.8322]
[1747672166002,0.1,2470.9,2470.8,0.8322]
[1747672167000,0.1,2470.9,2470.8,8.8322]
[1747672167793,0.1,2470.9,2470.8,9.0432]
[1747672168036,4.14710834,2470.9,2470.8,0.8322]
[1747672168177,4.14710834,2470.9,2470.5,0.785]
[1747672168381,4.04734548,2470.8,2470.6,8.211]
[1747672168579,4.04734548,2470.8,2470.6,1.6996]
[1747672168780,4.04734548,2470.8,2470.7,8.211]
[1747672169104,4.14719518,2470.9,2470.7,8.211]
[1747672169421,0.1,2470.9,2470.7,8.211]
[1747672170015,0.1,2470.9,2470.8,8.211]
[1747672170804,4.14710834,2470.9,2470.7,1.06956]
[1747672170993,4.14710834,2470.9,2470.8,8.211]
[1747672171192,0.1,2470.9,2470.8,8.211]
[1747672171825,0.1,2470.9,2470.8,8.21]
[1747672172102,0.1,2470.9,2470.8,16.9769]
[1747672173287,0.1,2470.9,2470.8,21.02417213]
[1747672173470,0.1,2470.9,2470.8,23.53134557]
[1747672174081,0.1,2470.9,2470.8,11.27407344]
[1747672174293,0.1,2470.9,2470.8,21.02417213]
[1747672174908,0.1,2470.9,2470.8,16.9769]
[1747672175806,0.1,2470.9,2470.8,8.7669]
[1747672176012,0.1,2470.9,2470.8,16.9769]
[1747672176310,0.1,2470.9,2470.8,8.7669]
[1747672176515,0.1,2470.9,2470.8,16.9769]
[1747672176719,0.1,2470.9,2470.8,19.07934938]
[1747672180478,0.1,2470.9,2470.8,16.9759]
[1747672180685,4.14710834,2470.9,2470.8,8.209]
[1747672180983,4.14710834,2470.9,2470.5,0.14845377]
[1747672180984,4.04737025,2470.8,2470.5,0.14845377]
[1747672181192,0.1,2470.9,2470.7,8.0]
[1747672181403,4.14712872,2470.9,2470.7,8.0]
[1747672181919,4.04727213,2470.8,2470.7,8.0]
[1747672182083,0.1,2470.9,2470.7,8.0]
[1747672182497,0.1,2470.9,2470.8,0.7779]
[1747672182895,4.14720983,2470.9,2470.4,0.7779]
[1747672183221,4.04739908,2470.8,2470.6,8.0]
[1747672183520,4.04743594,2470.7,2470.6,8.209]
[1747672183685,4.04792746,2470.4,2470.3,0.14845377]
[1747672183886,4.04792746,2470.4,2470.3,8.209]
[1747672184090,4.04809132,2470.3,2470.2,0.19812878]
[1747672184339,4.04809132,2470.3,2470.2,8.40712878]
[1747672185124,4.04809132,2470.3,2470.2,8.209]
[1747672185623,4.0482552,2470.2,2470.1,33.689]
[1747672185818,4.0482552,2470.2,2470.1,25.689]
[1747672186122,4.0482552,2470.2,2470.1,17.48]
[1747672187833,0.156,2470.8,2470.2,8.0]
[1747672188131,4.14723347,2470.9,2470.4,0.7805]
[1747672188335,4.04728836,2470.8,2470.5,8.21]
[1747672189101,4.04728294,2470.8,2470.5,8.21]
[1747672189337,4.04728294,2470.8,2470.5,9.10905]
[1747672189524,0.1,2470.9,2470.5,8.21]
[1747672189525,4.04750216,2470.7,2470.5,8.21]
[1747672190129,0.1,2470.9,2470.5,8.21]
[1747672190334,4.04728113,2470.8,2470.5,8.21]
[1747672191297,0.1,2470.9,2470.5,8.21]
[1747672191501,0.1,2470.9,2470.5,12.25775167]
[1747672191701,0.1,2470.9,2470.5,9.93347015]
[1747672191925,4.14711854,2470.9,2470.5,9.93347015]
[1747672192447,0.1,2470.9,2470.5,9.93347015]
[1747672192734,4.14712489,2470.9,2470.5,9.93347015]
[1747672192939,0.1,2470.9,2470.6,12.86686473]
[1747672193094,0.1,2470.9,2470.7,2.28003349]
[1747672193299,0.1,2470.9,2470.8,8.204]
[1747672193300,4.14718575,2470.9,2470.8,8.204]
[1747672193941,0.1,2470.9,2470.8,8.204]
[1747672194156,0.1,2470.9,2470.8,16.204]
[1747672198157,0.1,2470.9,2470.8,20.25127213]
[1747672198341,0.1,2470.9,2470.8,8.0]
[1747672198545,0.1,2470.9,2470.8,17.08494]
[1747672199026,0.1,2470.9,2470.8,8.88194]
[1747672199388,0.1,2470.9,2470.8,17.08494]
[1747672200755,0.1,2470.9,2470.8,0.88194]
[1747672200954,0.1,2470.9,2470.8,12.25027213]
[1747672201144,0.1,2470.9,2470.8,16.203]
[1747672201340,0.1,2470.9,2470.8,27.34877213]
[1747672201542,0.1,2470.9,2470.8,21.05177213]
[1747672201745,0.1,2470.9,2470.8,23.56169287]
[1747672201944,0.1,2470.9,2470.8,23.8642416]
[1747672202463,0.1,2470.9,2470.8,19.81696947]
[1747672202665,0.1,2470.9,2470.8,19.51442074]
[1747672203166,0.1,2471.9,2470.9,0.7682]
[1747672203371,4.14558025,2471.9,2471.4,4.81446358]
[1747672203531,4.14558025,2471.9,2471.4,0.7682]
[1747672203532,0.1,2471.9,2471.4,0.7682]
[1747672203729,0.1,2471.9,2471.8,4.04563476]
[1747672203971,0.1,2471.9,2471.8,13.02263476]
[1747672204622,0.1,2471.9,2471.8,8.977]
[1747672204875,0.1,2471.9,2471.8,15.79516233]
[1747672205026,0.1,2471.9,2471.8,15.59216233]
[1747672205362,0.1,2471.9,2471.8,23.79416233]
[1747672205574,0.1,2471.9,2471.8,28.80796033]
[1747672206333,0.1,2471.9,2471.8,28.47397133]
[1747672207165,1.28596978,2473.1,2472.6,0.8059]
[1747672207329,1.28596978,2473.1,2472.8,12.8498987]
[1747672207534,1.28596978,2473.1,2472.8,8.8059]
[1747672207734,1.28596978,2473.1,2472.8,12.8498987]
[1747672207930,0.96447733,2473.4,2473.0,12.04367165]
[1747672208131,1.60746223,2473.8,2473.7,4.04252738]
[1747672208356,1.60746223,2473.8,2473.7,32.7719]
[1747672208561,1.60746223,2473.8,2473.7,34.4729]
[1747672209070,1.60746223,2473.8,2473.7,8.0]
[1747672209567,1.60746223,2473.8,2473.7,8.201]
[1747672209732,5.6498262,2473.8,2473.7,8.33026069]
[1747672210231,1.60746223,2473.8,2473.7,8.33026069]
[1747672210428,5.6498262,2473.8,2473.7,8.32826069]
[1747672211038,5.6498262,2473.8,2473.7,0.12926069]
[1747672211238,1.60746223,2473.8,2473.7,1.16111726]
[1747672211535,1.60746223,2473.8,2473.7,2.89712899]
[1747672211763,0.1,2473.9,2473.7,2.7678683]
[1747672212170,0.1,2473.9,2473.8,0.25424629]
[1747672212475,4.14220057,2473.9,2473.8,8.45324629]
[1747672212844,4.14220057,2473.9,2473.8,0.25424629]
[1747672213049,4.14220057,2473.9,2473.8,8.45324629]
[1747672213371,4.55916204,2473.9,2473.8,0.08682998]
[1747672213546,25.41903883,2473.9,2473.8,0.08682998]
[1747672213745,25.71568819,2473.9,2473.8,0.08682998]
[1747672214271,5.45570057,2473.9,2473.8,0.08682998]
[1747672216234,4.90570057,2473.9,2473.8,0.08682998]
[1747672216888,5.45570057,2473.9,2473.8,0.08682998]
[1747672219128,4.14220057,2473.9,2473.8,0.08682998]
[1747672219612,4.69220057,2473.9,2473.8,0.08682998]
[1747672220302,4.14220057,2473.9,2473.8,0.08682998]
[1747672227421,4.14220057,2473.9,2473.8,0.21610629]
[1747672227717,0.902,2474.9,2473.8,8.62710629]
[1747672227917,4.94266964,2474.9,2473.9,0.7557]
[1747672228126,4.04132982,2474.5,2473.9,0.96413903]
[1747672228325,5.04081449,2474.8,2474.0,26.07443061]
[1747672228484,4.04089384,2474.7,2474.0,28.7703713]
[1747672228688,4.04163449,2474.3,2474.1,0.12927631]
[1747672228988,4.04128564,2474.5,2474.1,0.12927631]
[1747672229205,4.04165926,2474.3,2474.1,0.12927631]
[1747672229411,4.04171045,2474.2,2474.1,0.12927631]
[1747672230038,4.04171045,2474.2,2474.1,0.36304975]
[1747672230238,4.04171045,2474.2,2474.1,0.35580324]
[1747672231650,4.04171045,2474.2,2474.1,8.76580324]
[1747672232048,4.04171045,2474.2,2474.1,0.35580324]
[1747672234213,5.38301045,2474.2,2474.1,0.35580324]
[1747672235546,5.38301045,2474.2,2474.1,0.22652693]
[1747672236738,4.83301045,2474.2,2474.1,0.22652693]
[1747672237741,4.04171045,2474.2,2474.1,0.22652693]
[1747672240257,4.04171045,2474.2,2474.1,0.35579521]
[1747672242863,4.04171045,2474.2,2474.1,8.76579521]
[1747672243163,4.04171045,2474.2,2474.1,0.35579521]
[1747672243529,5.40921045,2474.2,2474.1,0.35579521]
[1747672243932,5.40921045,2474.2,2474.1,0.22652693]
[1747672246029,13.41671045,2474.2,2474.1,0.22652693]
[1747672247768,13.41671045,2474.2,2474.1,0.10901448]
[1747672248446,17.68371045,2474.2,2474.1,0.10901448]
[1747672249154,4.5930177,2473.4,2473.3,0.14833768]
[1747672249471,5.3847177,2473.4,2473.3,0.14833768]
[1747672250078,4.04448938,2472.5,2472.4,0.14833768]
[1747672250448,0.55,2473.3,2472.4,0.14833768]
[1747672250654,4.04415698,2472.8,2472.5,0.7927]
[1747672250881,3.32117503,2472.8,2472.6,0.93520377]
[1747672251153,4.04416225,2472.7,2472.6,0.93520377]
[1747672251353,4.04416225,2472.7,2472.6,1.06452823]
[1747672251580,4.04406875,2472.8,2472.6,1.06452823]
[1747672251781,4.04393354,2472.9,2472.6,1.06452823]
[1747672252286,4.04401982,2472.8,2472.6,1.06452823]
[1747672252460,4.04401982,2472.8,2472.7,0.6]
[1747672253076,4.04416225,2472.7,2472.6,8.54132446]
[1747672253949,4.04432581,2472.6,2472.5,9.2047]
[1747672254469,4.04432581,2472.6,2472.5,0.7927]
[1747672254674,4.04432581,2472.6,2472.5,9.1527]
[1747672254889,4.04432581,2472.6,2472.5,10.06797]
[1747672255052,4.04406264,2472.8,2472.5,10.06797]
[1747672255405,4.04432581,2472.6,2472.5,10.06797]
[1747672255582,4.04432581,2472.6,2472.5,1.70797]
[1747672255809,4.04432581,2472.6,2472.5,9.1537]
[1747672256790,4.04432581,2472.6,2472.5,0.7927]
[1747672257867,4.04475897,2472.4,2472.2,0.7683]
[1747672258066,4.04475897,2472.4,2472.3,8.361]
[1747672258264,4.04474917,2472.4,2472.3,8.361]
[1747672258891,4.04481656,2472.3,2472.2,0.7683]
[1747672259060,4.04481656,2472.3,2472.2,9.1293]
[1747672259801,4.04481656,2472.3,2472.2,0.7683]
[1747672260004,4.04481656,2472.3,2472.2,8.361]
[1747672260363,4.04481656,2472.3,2472.2,0.72934568]
[1747672260564,4.04481656,2472.3,2472.2,0.12934568]
[1747672261675,4.04498017,2472.2,2472.0,8.361]
[1747672262088,4.04498017,2472.2,2471.8,25.96433768]
[1747672263135,4.04498017,2472.2,2471.9,8.362]
[1747672263345,4.04490132,2472.3,2471.9,8.362]
[1747672263627,4.04490132,2472.3,2472.2,0.8304]
[1747672263781,4.04498017,2472.2,2472.0,0.8304]
[1747672263981,4.04498017,2472.2,2472.0,8.362]
[1747672264186,4.04498017,2472.2,2471.8,17.454]
[1747672264383,4.04498017,2472.2,2472.0,8.362]
[1747672264691,4.04489341,2472.3,2472.1,0.9462]
[1747672264891,4.04489341,2472.3,2472.2,0.7801]
[1747672266188,4.04489341,2472.3,2472.2,9.1421]
[1747672266588,4.04489341,2472.3,2472.1,0.1]
[1747672266589,4.04498017,2472.2,2472.1,0.1]
[1747672267004,4.59498017,2472.2,2472.1,0.1]
[1747672267600,13.35388017,2472.2,2472.1,0.1]
[1747672268018,4.04498017,2472.2,2472.1,0.1]
[1747672268726,5.36328017,2472.2,2472.1,0.1]
[1747672269822,13.36328017,2472.2,2472.1,0.1]
[1747672275337,17.63028017,2472.2,2472.1,0.1]
[1747672276336,13.36328017,2472.2,2472.1,0.1]
[1747672276534,21.72728017,2472.2,2472.1,0.1]
[1747672277041,21.72728017,2472.2,2471.1,0.1]
[1747672277042,4.59661702,2471.2,2471.1,0.1]
[1747672278239,12.59661702,2471.2,2471.1,0.1]
[1747672280612,13.41531702,2471.2,2471.1,0.1]
[1747672282860,23.85112738,2471.2,2471.1,0.1]
[1747672284844,15.85112738,2471.2,2471.1,0.1]
[1747672285320,23.85112738,2471.2,2471.1,0.1]
[1747672286337,32.13312738,2471.2,2471.1,0.1]